[Event "4NCL Div 1 2024-25"]
[Site "England"]
[Date "2024.11.23"]
[Round "1.31"]
[White "Badacsonyi, Frankie"]
[Black "Pert, Nina"]
[Result "1-0"]
[Annotator "RC"]
[ECO "D35"]
[WhiteElo "2266"]
[BlackElo "1984"]
[PlyCount "67"]
[EventDate "2024.11.23"]
[EventType "team-tourn"]
[EventCountry "ENG"]
[SourceTitle "playchess.com"]
[Source "ChessBase"]
[SourceQuality "1"]
[TimeControl "40/6000+30:3000+30"]

1. d4 {[%emt 0:10:13]} d5 {[%emt 0:10:12]} 2. c4 {[%emt 0:00:41]} e6 {[%emt 0:00:21]} 3. Nc3 {[%emt 0:01:25]} Nf6 {[%emt 0:00:23]} 4. Nf3 {[%emt 0:01:58]} Be7 {[%emt 0:01:51]} 5. cxd5 {[%emt 0:01:33]} exd5 {[%emt 0:00:37]} 6. Bf4 {[%emt 0:01:05]} a6 {[%emt 0:03:30]} 7. e3 {[%emt 0:02:03]} Nbd7 {[%emt 0:03:31]} 8. Bd3 {[%emt 0:02:51]} Nf8 {[%emt 0:02:51]} 9. h3 {[%emt 0:02:36]} Ng6 {[%emt 0:02:20]} 10. Bh2 {[%emt 0:01:05]} Bd6 {[%emt 0:05:17]} 11. Ne5 {[%emt 0:07:31]} O-O {[%emt 0:07:03]} 12. O-O {[%emt 0:05:36]} Re8 {[%emt 0:05:19]} 13. f4 {[%emt 0:06:26]} c5 {[%emt 0:04:58]} 14. Kh1 {[%emt 0:13:22]} b5 {[%emt 0:03:47]} 15. Qf3 {[%emt 0:18:52]} Bb7 {[%emt 0:05:53]} 16. Rad1 {[%emt 0:00:09]} Qe7 {[%emt 0:09:23]} 17. Ne2 {[%emt 0:06:05]} c4 {[%emt 0:10:22]} 18. Bb1 {[%emt 0:02:35]} Nh4 {[%emt 0:01:12]} 19. Qf2 {[%emt 0:00:53]} Ne4 {[%emt 0:00:52]} 20. Bxe4 {[%emt 0:00:06]} dxe4 {[%emt 0:00:03]} 21. f5 {[%emt 0:03:33]} g5 {[%emt 0:15:43]} 22. Bg3 {[%emt 0:08:09]} Qf6 {[%emt 0:06:11]} 23. Ng4 {[%emt 0:00:53]} Qd8 {[%emt 0:00:46]} 24. Bxh4 {[%emt 0:00:15]} gxh4 {[%emt 0:00:10]} 25. f6 {[%emt 0:00:11]} Qc7 {[%emt 0:02:20]} 26. Qxh4 {[%emt 0:00:14]} Red8 {[%emt 0:03:05]} 27. Qh6 {[%emt 0:05:09]} Bf8 {[%emt 0:00:06]} 28. Qg5+ {[%emt 0:00:02]} Kh8 {[%emt 0:00:05]} 29. Rf5 {[%emt 0:00:17]} Bc8 {[%emt 0:01:45]} 30. Nh6 {[%emt 0:00:07]} Bxh6 {[%emt 0:01:04]} 31. Qxh6 {[%emt 0:00:04]} Rg8 {[%emt 0:00:28]} 32. Rh5 {[%emt 0:00:01]} Bf5 {[%emt 0:00:14]} 33. Rxf5 {[%emt 0:00:17]} Rg6 {[%emt 0:00:06]} 34. Qh4 {[%emt 0:00:15]} 1-0

[Event "4NCL Div 1 2024-25"]
[Site "England"]
[Date "2024.11.23"]
[Round "1.32"]
[White "Pert, Max"]
[Black "Villiers, Thomas"]
[Result "0-1"]
[Annotator "RC"]
[ECO "D02"]
[WhiteElo "2076"]
[BlackElo "2182"]
[PlyCount "136"]
[EventDate "2024.11.23"]
[EventType "team-tourn"]
[EventCountry "ENG"]
[SourceTitle "playchess.com"]
[Source "ChessBase"]
[SourceQuality "1"]
[TimeControl "40/6000+30:3000+30"]

1. d4 {[%emt 0:10:03]} d5 {[%emt 0:28:59]} 2. Nf3 {[%emt 0:00:36]} Nf6 {[%emt 0:01:02]} 3. Bf4 {[%emt 0:01:04]} e6 {[%emt 0:06:58]} 4. e3 {[%emt 0:01:20]} Be7 {[%emt 0:00:30]} 5. h3 {[%emt 0:02:35]} c5 {[%emt 0:02:56]} 6. c3 {[%emt 0:03:21]} Nc6 {[%emt 0:00:42]} 7. Nbd2 {[%emt 0:01:48]} O-O {[%emt 0:02:09]} 8. Bd3 {[%emt 0:01:42]} Re8 {[%emt 0:00:44]} 9. Bh2 {[%emt 0:05:50]} Bd6 {[%emt 0:00:53]} 10. Ne5 {[%emt 0:01:21]} Qc7 {[%emt 1:00:37]} 11. f4 {[%emt 0:01:56]} Ne7 {[%emt 0:00:00]} 12. g4 {[%emt 0:04:49]} Bd7 {[%emt 0:00:00]} 13. g5 {[%emt 0:10:29]} Bxe5 {[%emt 0:00:00]} 14. fxe5 {[%emt 0:01:59]} Ne4 {[%emt 0:00:00]} 15. Nxe4 {[%emt 0:01:45]} dxe4 {[%emt 0:00:00]} 16. Bxe4 {[%emt 0:01:12]} Bc6 {[%emt 0:00:00]} 17. Qf3 {[%emt 0:04:00]} Bxe4 {[%emt 0:00:00]} 18. Qxe4 {[%emt 0:00:07]} Qb6 {[%emt 0:00:00]} 19. Qg2 {[%emt 0:10:23]} Nf5 {[%emt 0:00:00]} 20. Qf2 {[%emt 0:03:32]} Red8 {[%emt 0:00:00]} 21. O-O {[%emt 0:04:23]} cxd4 {[%emt 0:00:00]} 22. exd4 {[%emt 0:05:06]} Rac8 {[%emt 0:00:00]} 23. Qe2 {[%emt 0:07:02]} Qc6 {[%emt 0:00:00]} 24. a4 {[%emt 0:03:27]} a6 {[%emt 0:07:00]} 25. Ra3 {[%emt 0:02:24]} Rd5 {[%emt 0:00:00]} 26. Bf4 {[%emt 0:03:53]} Ra5 {[%emt 0:00:00]} 27. Rfa1 {[%emt 0:01:55]} Nh4 {[%emt 0:00:00]} 28. Qg4 {[%emt 0:03:02]} Nf5 {[%emt 0:00:00]} 29. Qg2 {[%emt 0:02:42]} Rd5 {[%emt 0:00:00]} 30. Qe2 {[%emt 0:01:07]} Rd7 {[%emt 0:00:00]} 31. Rb3 {[%emt 0:01:26]} Ne7 {[%emt 0:00:00]} 32. a5 {[%emt 0:01:21]} Rd5 {[%emt 0:00:00]} 33. Raa3 {[%emt 0:01:43]} Qc7 {[%emt 0:00:00]} 34. Rb4 {[%emt 0:03:59]} Nc6 {[%emt 0:00:00]} 35. Rc4 {[%emt 0:01:19]} Rxa5 {[%emt 0:00:00]} 36. Rxa5 {[%emt 0:01:29]} Qxa5 {[%emt 0:00:00]} 37. Kf2 {[%emt 0:00:09]} Qa1 {[%emt 0:00:00]} 38. Qc2 {[%emt 0:01:05]} Qh1 {[%emt 0:00:00]} 39. Qd3 {[%emt 0:00:16]} Rd8 {[%emt 0:00:00]} 40. b4 {[%emt 0:01:17]} Ne7 {[%emt 0:00:00]} 41. Qf3 {[%emt 0:51:12]} Qb1 {[%emt 0:48:02]} 42. Rc7 {[%emt 0:00:00]} Nd5 {[%emt 0:00:00]} 43. Rxb7 {[%emt 0:00:00]} Qc2+ {[%emt 0:00:00]} 44. Kg3 {[%emt 0:00:00]} Nxc3 {[%emt 0:00:00]} 45. Be3 {[%emt 0:00:00]} Rf8 {[%emt 0:00:00]} 46. Ra7 {[%emt 0:00:00]} Nd5 {[%emt 0:00:00]} 47. Bf2 {[%emt 0:00:00]} Qd2 {[%emt 0:00:00]} 48. h4 {[%emt 0:00:00]} Nxb4 {[%emt 0:00:00]} 49. Ra8 {[%emt 0:00:00]} g6 {[%emt 0:00:00]} 50. Rxf8+ {[%emt 0:00:00]} Kxf8 {[%emt 0:00:00]} 51. Qf6 {[%emt 0:00:00]} Nd5 {[%emt 0:00:00]} 52. Qh8+ {[%emt 0:00:00]} Ke7 {[%emt 0:00:00]} 53. Qb8 {[%emt 0:00:00]} Qc3+ {[%emt 0:00:00]} 54. Kg4 {[%emt 0:00:00]} Qc7 {[%emt 0:00:00]} 55. Qa8 {[%emt 0:00:00]} Qb6 {[%emt 0:00:00]} 56. h5 {[%emt 0:00:00]} Nc7 {[%emt 0:00:00]} 57. Qh8 {[%emt 0:00:00]} Qb1 {[%emt 0:00:00]} 58. Bh4 {[%emt 0:00:00]} Qd1+ {[%emt 0:00:00]} 59. Kg3 {[%emt 0:00:00]} Qd3+ {[%emt 0:00:00]} 60. Kh2 {[%emt 0:00:00]} Qxd4 {[%emt 0:00:00]} 61. Qf6+ {[%emt 0:00:00]} Ke8 {[%emt 0:00:00]} 62. Bf2 {[%emt 0:00:00]} Qd2 {[%emt 0:00:00]} 63. Qh8+ {[%emt 0:00:00]} Kd7 {[%emt 0:00:00]} 64. Qf6 {[%emt 0:00:00]} Kc6 {[%emt 0:00:00]} 65. Qf3+ {[%emt 0:00:13]} Nd5 {[%emt 0:00:00]} 66. Qxf7 {[%emt 0:00:19]} Qf4+ {[%emt 0:00:00]} 67. Qxf4 {[%emt 0:00:11]} Nxf4 {[%emt 0:00:00]} 68. hxg6 {[%emt 0:00:31]} Nxg6 {[%emt 0:00:00]} 0-1

[Event "4NCL Div 1 2024-25"]
[Site "England"]
[Date "2024.11.23"]
[Round "1.33"]
[White "Gormally, Daniel W"]
[Black "Emms, John M"]
[Result "1/2-1/2"]
[Annotator "TA"]
[ECO "D53"]
[WhiteElo "2424"]
[BlackElo "2413"]
[PlyCount "63"]
[EventDate "2024.11.23"]
[EventType "team-tourn"]
[EventCountry "ENG"]
[SourceTitle "playchess.com"]
[Source "ChessBase"]
[SourceQuality "1"]
[TimeControl "40/6000+30:3000+30"]

{[%evp 11,63,1,20,15,25,22,28,0,0,0,0,0,31,18,31,-7,0,0,0,0,0,2,3,0,0,0,0,0,0,0,0,0,0,0,0,0,0,0,0,0,0,0,0,0,0,0,0,0,0,0,0,0,0,0]} 1. d4 {[%emt 0:10:07]} d5 {[%emt 0:10:29]} 2. c4 {[%emt 0:00:09]} e6 {[%emt 0:00:18]} 3. Nf3 {[%emt 0:00:09]} Nf6 {[%emt 0:00:06]} 4. Nc3 {[%emt 0:00:04]} Be7 {[%emt 0:00:37]} 5. Bg5 {[%emt 0:00:40]} h6 {[%emt 0:01:02]} 6. Bh4 {[%emt 0:00:11]} dxc4 {[%emt 0:01:07]} 7. e3 {[%emt 0:01:05]} c5 {[%emt 0:00:29]} 8. Bxc4 {[%emt 0:02:43]} cxd4 {[%emt 0:00:18]} 9. exd4 {[%emt 0:03:52] White has an edge.} Nc6 {[%emt 0:00:29]} 10. O-O {[%emt 0:02:01]} O-O {[%emt 0:00:08]} 11. Re1 {[%emt 0:03:19]} a6 {[%emt 0:04:51]} 12. Bb3 {[%emt 0:02:47]} b5 {[%emt 0:12:10]} 13. Bxf6 {[%emt 0:13:12]} (13. a3 $5) 13... Bxf6 {[%emt 0:00:13] The position is equal.} 14. d5 {[%emt 0:00:10]} Bxc3 {[%emt 0:19:54]} 15. bxc3 {[%emt 0:00:31]} exd5 {[%emt 0:00:57]} 16. Bxd5 {[%emt 0:03:15]} Bb7 {[%emt 0:02:38]} 17. c4 {[%emt 0:08:16]} Na5 {[%emt 0:31:18]} 18. Bxb7 {[%emt 0:06:16]} Nxb7 {[%emt 0:04:31]} 19. Ne5 {[%emt 0:01:56]} Qxd1 {[%emt 0:04:56]} 20. Raxd1 {[%emt 0:02:54]} Rfd8 {[%emt 0:01:11]} 21. Nc6 {[%emt 0:06:22]} Rxd1 {[%emt 0:01:15]} 22. Rxd1 {[%emt 0:00:07]} bxc4 $11 {[%emt 0:00:56][%mdl 4096] Endgame. KRN-KRN} 23. Rd4 {[%emt 0:00:23]} c3 {[%emt 0:02:22]} 24. Rc4 {[%emt 0:02:01]} Kf8 {[%emt 0:02:07] [#] ...Rc8 is the strong threat.} 25. Rxc3 {[%emt 0:03:04]} Rc8 {[%emt 0:00:36] White must now prevent ...Nd8.} 26. Rc4 {[%emt 0:05:51]} Nd8 {[%emt 0:02:12]} 27. Ne5 {[%emt 0:00:15]} Rxc4 {[%emt 0:00:04]} 28. Nxc4 {[%emt 0:00:04]} Ke7 {[%emt 0:00:11]} 29. Kf1 {[%emt 0:00:16]} Ke6 {[%emt 0:00:28]} 30. Ke2 {[%emt 0:00:26]} Nc6 {[%emt 0:00:23]} 31. a3 {[%emt 0:02:17]} Ne5 {[%emt 0:02:23]} 32. Ne3 {[%emt 0:02:59] An uneventful encounter.   Weighted Error Value: White=0.05 (flawless) /Black=0.03 (flawless) .  Inaccurate:     	White=2     	Black=1      OK:         	White=15    	Black=12} 1/2-1/2

[Event "4NCL Div 1 2024-25"]
[Site "England"]
[Date "2024.11.23"]
[Round "1.34"]
[White "Chow, Samuel"]
[Black "Ansell, Simon T"]
[Result "1-0"]
[Annotator "TA"]
[ECO "D15"]
[WhiteElo "2348"]
[BlackElo "2323"]
[PlyCount "57"]
[EventDate "2024.11.23"]
[EventType "team-tourn"]
[EventCountry "ENG"]
[SourceTitle "playchess.com"]
[Source "ChessBase"]
[SourceQuality "1"]
[TimeControl "40/6000+30:3000+30"]

{[%evp 11,57,33,27,27,29,27,28,29,56,50,47,47,51,42,45,28,37,7,15,22,20,0,0,0,18,0,29,31,68,56,58,42,64,68,268,303,409,402,351,188,262,193,192,191,972,992,1208,1171]} 1. d4 {[%emt 0:10:04]} d5 {[%emt 0:10:35]} 2. c4 {[%emt 0:00:10]} c6 {[%emt 0:00:07]} 3. Nc3 {[%emt 0:00:15]} Nf6 {[%emt 0:01:49]} 4. e3 {[%emt 0:00:19]} a6 {[%emt 0:00:29]} 5. Nf3 {[%emt 0:00:18]} b5 {[%emt 0:03:41]} 6. b3 {[%emt 0:00:21]} Bg4 {[%emt 0:01:29]} 7. a4 {[%emt 0:00:45]} b4 {[%emt 0:10:06]} 8. Ne2 {[%emt 0:00:12]} Bxf3 {[%emt 0:01:30]} 9. gxf3 {[%emt 0:00:08] White has an edge.} e6 {[%emt 0:06:07]} 10. Bg2 {[%emt 0:02:57]} Be7 {[%emt 0:02:11]} 11. e4 {[%emt 0:01:47]} O-O {[%emt 0:16:00]} 12. O-O {[%emt 0:03:25]} a5 {[%emt 0:02:51]} 13. e5 {[%emt 0:02:26]} Ne8 {[%emt 0:02:16]} 14. Be3 {[%emt 0:07:12]} Nd7 {[%emt 0:01:42]} 15. Rc1 {[%emt 0:03:47]} g6 {[%emt 0:02:10]} 16. cxd5 {[%emt 0:06:49]} cxd5 {[%emt 0:00:06]} 17. Rc6 {[%emt 0:00:45]} Ng7 {[%emt 0:02:06]} 18. Qd3 {[%emt 0:04:31]} Nb8 {[%emt 0:05:21]} 19. Rc2 {[%emt 0:00:15]} Qd7 {[%emt 0:00:47]} 20. Rfc1 $1 {[%emt 0:00:40] White is more active.} Ra7 {[%emt 0:00:07] Against Rc7} 21. Bf1 {[%emt 0:08:53]} Nf5 {[%emt 0:04:30]} 22. Ng3 {[%emt 0:03:26] Strongly threatening Nxf5.} f6 $2 {[%emt 0:00:11] [#] Loses the game.} (22... Nxe3 $14 23. Qxe3 Bd8) 23. Nxf5 $18 {[%emt 0:01:49]} gxf5 {[%emt 0:02:47]} 24. Bh6 {[%emt 0:00:59]} Rd8 {[%emt 0:00:52]} 25. f4 {[%emt 0:02:52]} (25. Qe3 $142 {Hoping for Bb5.} Qe8 26. Kh1) 25... Kh8 {[%emt 0:07:57]} (25... Bf8 $142) 26. Qg3 {[%emt 0:05:10]} Bf8 {[%emt 0:03:33] Wards off Qg7+} ({Don't blunder} 26... Rg8 $2 27. Qxg8+ Kxg8 28. Bb5 $18 (28. Rc8+ Kf7 $11)) 27. Bb5 {[%emt 0:01:47]} Qe7 {[%emt 0:00:19] [#]} (27... Qb7) 28. exf6 {[%emt 0:04:12] Black is weak on the light squares} Qxf6 {[%emt 0:00:20]} 29. Bg5 {[%emt 0:00:48] Weighted Error Value: White=0.20 (precise) /Black=0.34.  Loses game:     	---       	Black=1      Mistake:       	White=1     	Black=2      Inaccurate:     	White=1     	Black=4      OK:         	White=8     	Black=6      Best:        	White=1     	---        Strong:       	White=1     	---} 1-0

[Event "4NCL Div 1 2024-25"]
[Site "England"]
[Date "2024.11.23"]
[Round "1.35"]
[White "Ledger, Andrew J"]
[Black "Camacho Collados, Jose"]
[Result "1-0"]
[Annotator "TA"]
[ECO "E12"]
[WhiteElo "2328"]
[BlackElo "2348"]
[PlyCount "109"]
[EventDate "2024.11.23"]
[EventType "team-tourn"]
[EventCountry "ENG"]
[SourceTitle "playchess.com"]
[Source "ChessBase"]
[SourceQuality "1"]
[TimeControl "40/6000+30:3000+30"]

{[%evp 26,109,41,40,43,13,25,15,47,21,81,77,112,107,105,105,133,113,133,97,91,102,92,81,80,93,93,95,90,85,157,168,160,170,155,143,170,178,188,186,175,68,129,113,135,100,155,148,159,149,202,196,200,167,229,229,216,202,329,317,478,459,496,474,501,514,641,624,728,412,888,880,869,869,928,1190,1359,1418,1383,877,29979,29980,29984,29985,29990,29991]} 1. d4 {[%emt 0:10:03]} e6 {[%emt 0:10:04]} 2. c4 {[%emt 0:00:46]} b6 {[%emt 0:00:04]} 3. a3 {[%emt 0:03:27]} Bb7 {[%emt 0:00:15]} 4. Nc3 {[%emt 0:00:05]} Nf6 {[%emt 0:00:32]} 5. Nf3 {[%emt 0:00:24]} Ne4 {[%emt 0:00:14]} 6. Nxe4 {[%emt 0:00:36]} Bxe4 {[%emt 0:00:06]} 7. Bf4 {[%emt 0:00:05]} Be7 {[%emt 0:03:11] E12: Queen's Indian: Unusual White 4th moves, 4 a3, 4 Nc3 Bb7 5 a3 and 4 Nc3 Bb7 .} 8. Nd2 {[%emt 0:05:04]} Bb7 {[%emt 0:01:26]} 9. e4 {[%emt 0:01:37]} Bg5 {[%emt 0:01:15]} 10. Qg4 {[%emt 0:04:34]} Bxf4 {[%emt 0:00:28]} 11. Qxf4 {[%emt 0:00:06]} d6 $146 {[%emt 0:00:30]} ({Predecessor:} 11... O-O 12. Bd3 d6 13. O-O e5 14. Qe3 exd4 15. Qxd4 c5 16. Qc3 Nc6 17. f4 Nd4 {½-½ Lupulescu,C (2619)-Nihal,S (2556) Abu Dhabi op 25th 2018 (7)}) 12. Be2 {[%emt 0:06:33]} Qf6 {[%emt 0:02:03]} 13. Qxf6 {[%emt 0:08:54]} gxf6 {[%emt 0:00:06]} 14. d5 {[%emt 0:00:44]} a5 {[%emt 0:04:16]} 15. b3 {[%emt 0:05:15]} Nd7 {[%emt 0:11:15]} 16. O-O {[%emt 0:08:28]} Rg8 {[%emt 0:00:19]} 17. g3 {[%emt 0:01:06]} O-O-O {[%emt 0:13:54]} (17... f5 $11 {remains equal.}) 18. Bh5 $16 {[%emt 0:06:59]} exd5 {[%emt 0:04:49]} 19. exd5 {[%emt 0:03:52]} Rdf8 {[%emt 0:04:33]} 20. f4 {[%emt 0:03:20]} b5 {[%emt 0:11:48]} 21. Rad1 {[%emt 0:05:38]} f5 {[%emt 0:09:22]} 22. Be2 {[%emt 0:05:33]} bxc4 {[%emt 0:10:58]} 23. bxc4 {[%emt 0:01:26]} Nc5 {[%emt 0:00:33]} 24. Nf3 {[%emt 0:02:19]} Re8 {[%emt 0:02:38]} 25. Nd4 $1 {[%emt 0:01:44]} Re3 {[%emt 0:04:16]} 26. Rf3 $1 {[%emt 0:02:27]} Rge8 {[%emt 0:01:10]} 27. Kf2 {[%emt 0:01:26]} Rc3 {[%emt 0:09:07]} (27... R3e4 $142) 28. Rxc3 $16 {[%emt 0:08:51]} Ne4+ {[%emt 0:00:02] [#]} 29. Kf3 $1 {[%emt 0:00:09]} Nxc3 {[%emt 0:00:10] [#]} 30. Rd2 $1 {[%emt 0:01:00]} Ne4 {[%emt 0:05:25]} 31. Rc2 {[%emt 0:01:03]} Nc5 {[%emt 0:00:27]} 32. Nxf5 {[%emt 0:00:44]} Kd7 {[%emt 0:00:34]} 33. Bf1 {[%emt 0:01:19]} (33. Rc3 $18) 33... c6 {[%emt 0:00:25]} (33... Re1 $14 34. Bh3 Ra1) 34. Ne3 {[%emt 0:01:05]} Kc7 {[%emt 0:00:30]} 35. g4 {[%emt 0:02:06]} f6 {[%emt 0:00:30]} (35... Ba8 $142) 36. h4 {[%emt 0:00:13]} h6 {[%emt 0:00:25]} 37. Rg2 {[%emt 0:01:10]} cxd5 {[%emt 0:00:43]} (37... Rh8 $16 {was called for.} 38. Be2 Re8) 38. cxd5 $18 {[%emt 0:00:19]} Rf8 {[%emt 0:00:34]} 39. Bb5 {[%emt 0:01:38]} Rf7 {[%emt 0:00:24]} (39... Rb8 $142 40. h5 Rh8) 40. Rd2 $18 {[%emt 0:01:27]} Bc8 {[%emt 0:00:30]} 41. Bd3 {[%emt 0:29:28]} Re7 {[%emt 0:23:43]} (41... Rf8 $142 42. Bf5 Bb7) 42. Bf5 $18 {[%emt 0:00:55]} Bb7 {[%emt 0:01:36]} (42... Ba6 {was necessary.} 43. g5 hxg5) 43. g5 $18 {[%emt 0:02:59]} fxg5 {[%emt 0:01:39]} 44. hxg5 {[%emt 0:00:22]} (44. fxg5 hxg5 45. hxg5 Bc8 $18) 44... hxg5 {[%emt 0:05:59]} 45. fxg5 {[%emt 0:00:04]} Nd7 {[%emt 0:00:59]} 46. Bxd7 {[%emt 0:04:24]} Kxd7 {[%emt 0:00:20]} 47. Rg2 {[%emt 0:03:19]} Ke8 {[%emt 0:02:17]} (47... Re8 $142 48. Rg3 Ke7) 48. g6 $18 {[%emt 0:00:31]} Kf8 {[%emt 0:03:18]} 49. Kf4 {[%emt 0:00:17]} Bc8 {[%emt 0:06:00]} 50. Rc2 {[%emt 0:00:58]} Bd7 {[%emt 0:05:43]} 51. Rc7 {[%emt 0:02:56]} Ke8 {[%emt 0:01:51]} 52. Ra7 {[%emt 0:01:06]} Rg7 {[%emt 0:01:44]} 53. Ra8+ {[%emt 0:00:53]} (53. Rxa5 Rxg6 54. Ke4 Kd8 $14) 53... Ke7 {[%emt 0:00:05]} 54. Nf5+ {[%emt 0:00:07]} ({Not} 54. Rxa5 Rxg6 55. Ke4 Rg1 $14) 54... Bxf5 {[%emt 0:00:06]} 55. Kxf5 {[%emt 0:00:04]} 1-0

[Event "4NCL Div 1 2024-25"]
[Site "England"]
[Date "2024.11.23"]
[Round "1.36"]
[White "Navrotescu, Andreea"]
[Black "Bates, Richard A"]
[Result "1-0"]
[Annotator "TA"]
[ECO "A17"]
[WhiteElo "2338"]
[BlackElo "2315"]
[PlyCount "111"]
[EventDate "2024.11.23"]
[EventType "team-tourn"]
[EventCountry "ENG"]
[SourceTitle "playchess.com"]
[Source "ChessBase"]
[SourceQuality "1"]
[TimeControl "40/6000+30:3000+30"]

{[%evp 48,111,-10,-31,-33,-50,22,0,0,0,30,25,38,30,32,30,235,235,219,224,214,236,211,245,254,235,245,248,242,241,233,236,223,52,45,45,62,8,232,229,224,119,253,253,256,254,239,157,436,424,375,392,466,436,426,425,768,699,824,816,797,752,865,873,1038,993]} 1. c4 {[%emt 0:10:03]} e6 {[%emt 0:11:02]} 2. Nc3 {[%emt 0:00:23]} Bb4 {[%emt 0:00:29]} 3. g3 {[%emt 0:01:05]} Nf6 {[%emt 0:00:49]} 4. Bg2 {[%emt 0:00:21]} O-O {[%emt 0:01:50]} 5. a3 {[%emt 0:07:23]} Bxc3 {[%emt 0:01:20]} 6. bxc3 {[%emt 0:00:04]} d5 {[%emt 0:09:43]} 7. cxd5 {[%emt 0:01:21]} exd5 {[%emt 0:00:25]} 8. Nf3 {[%emt 0:00:59]} Nc6 {[%emt 0:08:28]} 9. O-O {[%emt 0:01:18]} Re8 {[%emt 0:00:46]} 10. d3 {[%emt 0:07:21]} h6 {[%emt 0:02:13]} 11. h3 {[%emt 0:02:35]} b6 {[%emt 0:06:10]} 12. Bb2 {[%emt 0:08:31]} Bb7 {[%emt 0:01:24]} 13. Qc2 {[%emt 0:02:00]} Na5 {[%emt 0:02:55]} 14. Rad1 {[%emt 0:03:22]} Qe7 {[%emt 0:02:06]} 15. Rfe1 {[%emt 0:00:19]} c5 {[%emt 0:02:48]} 16. Nh4 {[%emt 0:02:35]} Qe6 {[%emt 0:08:16]} 17. g4 {[%emt 0:21:33]} Rad8 {[%emt 0:04:52]} 18. d4 {[%emt 0:04:58]} Nc4 {[%emt 0:02:44]} 19. Bc1 {[%emt 0:00:22]} Ne4 {[%emt 0:02:27]} 20. Nf5 {[%emt 0:03:17]} h5 {[%emt 0:03:00]} 21. f3 {[%emt 0:05:27]} Ned6 {[%emt 0:01:46]} 22. Nxd6 {[%emt 0:08:25]} Qxd6 {[%emt 0:03:49]} 23. e3 {[%emt 0:02:36]} hxg4 {[%emt 0:01:27]} 24. hxg4 {[%emt 0:00:01]} Re6 {[%emt 0:01:32]} 25. e4 {[%emt 0:07:08]} dxe4 {[%emt 0:05:52]} 26. d5 {[%emt 0:00:02]} Rg6 {[%emt 0:06:40]} (26... Bxd5 27. fxe4 Qe7 (27... Qg3 $2 28. Qf2 $18) 28. Qd3 $17) (26... Re7 $15 27. Rxe4 Rxe4 (27... Bxd5 28. Rxc4 Rde8 29. Rf4 $16) 28. fxe4 Qg3) 27. Rxe4 $11 {[%emt 0:00:30]} b5 $1 {[%emt 0:00:26]} (27... Bxd5 28. Rxc4 Bxc4 29. Rxd6 Rgxd6 30. Bg5 Rd1+ 31. Kf2 $18) 28. Qe2 {[%emt 0:03:47]} Bxd5 {[%emt 0:04:15]} 29. Re8+ {[%emt 0:00:32]} Rxe8 {[%emt 0:00:20]} 30. Qxe8+ {[%emt 0:00:02]} Kh7 {[%emt 0:00:12]} 31. Kf2 {[%emt 0:03:20]} Bc6 $2 {[%emt 0:07:11] [#]} (31... Ne5 $1 $11 {and Black is okay.} 32. Rh1+ (32. Qxb5 $2 Nxg4+ 33. fxg4 Qf6+ 34. Kg3 Bxg2 $19) 32... Rh6 33. Bxh6 gxh6) 32. Rh1+ $1 $18 {[%emt 0:01:24]} Rh6 {[%emt 0:00:04]} 33. Bxh6 $1 {[%emt 0:00:39]} (33. Qxf7 Rxh1 34. Qf5+ Kg8 35. Qc8+ Kf7 36. Qf5+ Kg8 37. Qc8+ Kf7 38. Qf5+ Kg8 $11) 33... Bxe8 {[%emt 0:00:05]} 34. Bf4+ {[%emt 0:00:05]} Kg8 {[%emt 0:00:49]} 35. Bxd6 {[%emt 0:00:08]} Nxd6 {[%emt 0:00:21]} 36. Rd1 {[%emt 0:01:37]} Nc4 {[%emt 0:00:39]} 37. f4 {[%emt 0:01:13]} Kf8 {[%emt 0:00:50]} 38. Rd8 {[%emt 0:01:36]} Ke7 {[%emt 0:00:54]} 39. Ra8 {[%emt 0:00:50]} a5 {[%emt 0:00:53]} 40. Be4 $2 {[%emt 0:00:35]} (40. Bf1 $18 Nd2 41. Bd3 (41. Rxa5 Ne4+ 42. Kg1 Nxc3 $16)) 40... a4 $1 $14 {[%emt 0:01:11]} 41. Bd3 {[%emt 0:28:39]} Nxa3 {[%emt 0:26:14]} 42. Rc8 {[%emt 0:00:22]} (42. Ke3 $14) 42... c4 $2 {[%emt 0:08:20]} (42... b4 $11) 43. Be4 $18 {[%emt 0:00:01]} Bd7 {[%emt 0:00:05]} 44. Rg8 {[%emt 0:03:27]} ({Better is} 44. Rc7 $18 {Black must now prevent Bf5.} g6 (44... Kd6 $2 45. Ra7 $18) 45. Ra7) 44... g6 {[%emt 0:06:46]} (44... Bxg4 $16 45. Rxg7 Be6) 45. g5 $18 {[%emt 0:00:53]} b4 {[%emt 0:08:01]} 46. cxb4 {[%emt 0:20:21]} Nb5 {[%emt 0:00:05]} 47. Ra8 {[%emt 0:00:00]} a3 $2 {[%emt 0:05:34]} (47... Nc3 $16 {was called for.} 48. Bc2 Kd6 49. Ra6+ Kc7 50. Ra7+ Kd6) 48. Ke3 $18 {[%emt 0:00:00]} Kd6 {[%emt 0:00:49]} 49. Ra6+ {[%emt 0:00:00]} Kc7 {[%emt 0:00:28] [#]} 50. Bd5 $1 {[%emt 0:00:00]} c3 {[%emt 0:00:50]} 51. Bxf7 {[%emt 0:00:00]} Kb7 {[%emt 0:02:29]} (51... Bf5 $142 52. Bxg6 Bxg6 53. Rxg6 Kb7 54. Rg7+ Kb6) 52. Ra5 $18 {[%emt 0:00:00]} Nd6 {[%emt 0:00:50]} 53. Bd5+ {[%emt 0:00:00]} (53. Bxg6 Nc4+ 54. Kd3 Nxa5 55. Kxc3 (55. bxa5 $2 {loses.} a2 $19) 55... Nc4 $11 (55... a2 56. Kb2 $16)) 53... Kb6 {[%emt 0:01:58]} 54. Rxa3 {[%emt 0:00:00]} Nb5 {[%emt 0:00:45]} 55. Ra1 {[%emt 0:00:00]} Bf5 {[%emt 0:00:09]} 56. Be4 {[%emt 0:00:00]} 1-0